fUST/lending_fUST_20240830
["ID","MTS","AMOUNT","RATE_DAILY","PERIOD"]
[336637683,1724990580600,-3000.0,0.0002104,2]
[336637684,1724990580627,-3000.0,0.0002105,2]
[336637685,1724990580655,-3000.0,0.0002106,2]
[336637686,1724990580680,-3000.0,0.0002107,2]
[336637687,1724990580707,-3000.0,0.0002108,2]
[336637688,1724990580733,-1000.0,0.0002109,2]
[336637691,1724990592879,3000.0,0.00021,2]
[336637694,1724990617247,307.058816,0.0001863,2]
[336637697,1724990645713,174.544953,0.00014247,2]
[336637699,1724990723230,309.14000994,0.0002091,2]
[336637703,1724990889270,-5454.473109,0.0002101,2]
[336637704,1724990889296,-500.0,0.00021107,2]
[336637705,1724990889321,-500.0,0.00021107,2]
[336637706,1724990889347,-2344.51,0.00021107,2]
[336637707,1724990889372,-500.0,0.00021107,2]
[336637708,1724990889397,-500.0,0.00021107,2]
[336637709,1724990889422,-500.0,0.00021107,2]
[336637710,1724990889447,-500.0,0.00021107,2]
[336637711,1724990889474,-500.0,0.00021107,2]
[336637712,1724990889499,-500.0,0.00021107,2]
[336637713,1724990889528,-1349.09,0.00021107,2]
[336637714,1724990889555,-500.0,0.00021107,2]
[336637715,1724990889582,-500.0,0.00021107,2]
[336637716,1724990889608,-500.0,0.00021107,2]
[336637717,1724990889637,-500.0,0.00021107,2]
[336637718,1724990889662,-500.0,0.00021107,2]
[336637719,1724990889686,-500.0,0.00021107,2]
[336637720,1724990889711,-500.0,0.00021107,2]
[336637721,1724990889736,-561.7,0.00021107,2]
[336637722,1724990889761,-500.0,0.00021108,2]
[336637723,1724990889787,-500.0,0.00021108,2]
[336637724,1724990889812,-500.0,0.00021108,2]
[336637725,1724990889842,-500.0,0.00021108,2]
[336637726,1724990889867,-500.0,0.00021108,2]
[336637727,1724990889891,-500.0,0.00021108,2]
[336637728,1724990889917,-500.0,0.00021108,2]
[336637729,1724990889948,-500.0,0.00021108,2]
[336637730,1724990889976,-500.0,0.00021108,2]
[336637731,1724990890003,-500.0,0.00021108,2]
[336637732,1724990890029,-500.0,0.00021108,2]
[336637733,1724990890056,-500.0,0.00021108,2]
[336637734,1724990890080,-998.86633086,0.00021381,2]
[336637735,1724990890108,-500.0,0.00021381,2]
[336637736,1724990890133,-291.36056014,0.00021381,2]
[336637743,1724990982548,10000.0,0.0001,2]
[336637755,1724991032198,-282.89,0.00021107,2]
[336637756,1724991032209,-500.0,0.00021107,2]
[336637757,1724991032219,-500.0,0.00021107,2]
[336637758,1724991032230,-500.0,0.00021107,2]
[336637759,1724991032241,-500.0,0.00021107,2]
[336637760,1724991032252,-164.98494291,0.00021107,2]
[336637776,1724991037785,-335.01505709,0.00021107,2]
[336637777,1724991037795,-500.0,0.00021107,2]
[336637778,1724991037805,-308.89734662,0.00021108,2]
[336637779,1724991037814,-500.0,0.00021108,2]
[336637780,1724991037823,-500.0,0.00021381,2]
[336637781,1724991037833,-547.92,0.00021381,2]
[336637782,1724991037842,-560.08,0.00021381,2]
[336637783,1724991037854,-500.0,0.00021381,2]
[336637784,1724991037863,-500.0,0.00021381,2]
[336637785,1724991037873,-561.7,0.00021381,2]
[336637786,1724991037882,-500.0,0.00021381,2]
[336637787,1724991037891,-500.0,0.00021381,2]
[336637789,1724991037901,-500.0,0.00021381,2]
[336637792,1724991037914,-500.0,0.00021381,2]
[336637793,1724991037923,-500.0,0.00021381,2]
[336637794,1724991037932,-500.0,0.00021381,2]
[336637795,1724991037942,-500.0,0.00021381,2]
[336637796,1724991037951,-500.0,0.00021381,2]
[336637797,1724991037961,-500.0,0.00021381,2]
[336637798,1724991037971,-500.0,0.00021381,2]
[336637799,1724991037980,-500.0,0.00021381,2]
[336637800,1724991037990,-1486.82,0.00021381,2]
[336637801,1724991038001,-500.0,0.00021382,2]
[336637802,1724991038013,-558.58,0.00021382,2]
[336637803,1724991038023,-500.0,0.00021382,2]
[336637804,1724991038033,-500.0,0.00021382,2]
[336637805,1724991038043,-500.0,0.00021382,2]
[336637806,1724991038052,-837.04854583,0.00021555,2]
[336637807,1724991038064,-500.0,0.00021655,2]
[336637808,1724991038075,-500.0,0.00021655,2]
[336637809,1724991038085,-561.7,0.00021655,2]
[336637810,1724991038095,-500.0,0.00021655,2]
[336637811,1724991038104,-500.0,0.00021655,2]
[336637812,1724991038114,-500.0,0.00021655,2]
[336637813,1724991038123,-500.0,0.00021655,2]
[336637814,1724991038133,-500.0,0.00021655,2]
[336637815,1724991038143,-500.0,0.00021655,2]
[336637816,1724991038155,-500.0,0.00021655,2]
[336637817,1724991038165,-500.0,0.00021655,2]
[336637818,1724991038174,-1486.82,0.00021655,2]
[336637819,1724991038184,-578.03,0.00021656,2]
[336637820,1724991038193,-500.0,0.00021928,2]
[336637821,1724991038203,-253.82003846,0.00021928,2]
[336637822,1724991038213,-273.30531244,0.00021928,2]
[336637823,1724991038223,-500.0,0.00021928,2]
[336637824,1724991038232,-500.0,0.00021928,2]
[336637825,1724991038246,-339.17362414,0.00021928,2]
[336637826,1724991038258,-500.0,0.00021928,5]
[336637827,1724991038271,-2407.74,0.00021928,5]
[336637828,1724991038283,-500.0,0.00021928,5]
[336637829,1724991038296,-500.0,0.00021928,5]
[336637830,1724991038309,-500.0,0.00021928,5]
[336637831,1724991038322,-500.0,0.00021928,5]
[336637832,1724991038334,-500.0,0.00021929,5]
[336637833,1724991038345,-561.7,0.00021929,5]
[336637834,1724991038357,-500.0,0.00021929,5]
[336637835,1724991038368,-500.0,0.00021929,5]
[336637836,1724991038379,-500.0,0.00021929,5]
[336637837,1724991038390,-500.0,0.00021929,5]
[336637838,1724991038401,-500.0,0.00021929,5]
[336637839,1724991038412,-500.0,0.00021929,5]
[336637840,1724991038423,-361.05,0.00021929,5]
[336637841,1724991038434,-500.0,0.00021929,5]
[336637842,1724991038445,-1486.82,0.00021929,5]
[336637843,1724991038456,-174.16943986,0.00022202,5]
[336637844,1724991038467,-2407.74,0.00022202,5]
[336637845,1724991038479,-500.0,0.00022202,5]
[336637846,1724991038490,-500.0,0.00022202,5]
[336637847,1724991038501,-256.04,0.00022202,5]
[336637848,1724991038512,-500.0,0.00022202,5]
[336637849,1724991038523,-535.33,0.00022203,5]
[336637850,1724991038534,-561.7,0.00022203,5]
[336637851,1724991038546,-500.0,0.00022203,5]
[336637852,1724991038557,-453.35,0.00022203,5]
[336637853,1724991038571,-500.0,0.00022203,5]
[336637854,1724991038583,-500.0,0.00022203,5]
[336637855,1724991038594,-500.0,0.00022203,5]
[336637856,1724991038604,-500.0,0.00022203,5]
[336637857,1724991038615,-500.0,0.00022203,5]
[336637858,1724991038627,-1486.82,0.00022203,5]
[336637859,1724991038637,-2407.74,0.00022476,5]
[336637860,1724991038650,-500.0,0.00022476,5]
[336637861,1724991038663,-500.0,0.00022476,5]
[336637862,1724991038674,-500.0,0.00022476,5]
[336637863,1724991038685,-561.7,0.00022477,5]
[336637864,1724991038696,-500.0,0.00022477,5]
[336637865,1724991038708,-545.48,0.00022477,5]
[336637866,1724991038719,-500.0,0.00022477,5]
[336637867,1724991038731,-500.0,0.00022477,5]
[336637868,1724991038741,-500.0,0.00022477,5]
[336637869,1724991038751,-557.0,0.00022477,5]
[336637870,1724991038762,-1486.82,0.00022477,5]
[336637871,1724991038784,-2407.74,0.0002275,5]
[336637872,1724991038795,-500.0,0.0002275,5]
[336637873,1724991038805,-500.0,0.0002275,5]
[336637874,1724991038816,-500.0,0.0002275,5]
[336637875,1724991038826,-561.7,0.00022751,5]
[336637876,1724991038839,-500.0,0.00022751,5]
[336637877,1724991038851,-500.0,0.00022751,5]
[336637878,1724991038863,-500.0,0.00022751,5]
[336637879,1724991038876,-500.0,0.00022751,5]
[336637880,1724991038889,-1486.82,0.00022751,5]
[336637881,1724991038902,-1811.94152816,0.00022925,2]
[336637882,1724991038915,-2407.74,0.00023024,5]
[336637883,1724991038927,-500.0,0.00023024,5]
[336637884,1724991038940,-500.0,0.00023024,5]
[336637885,1724991038953,-500.0,0.00023024,5]
[336637886,1724991038966,-561.7,0.00023025,5]
[336637887,1724991038977,-500.0,0.00023025,5]
[336637888,1724991038989,-500.0,0.00023025,5]
[336637889,1724991039001,-500.0,0.00023025,5]
[336637890,1724991039014,-647.15497669,0.00023025,5]
[336637891,1724991039027,-1486.82,0.00023025,5]
[336637892,1724991039040,-2407.74,0.00023298,5]
[336637893,1724991039053,-500.0,0.00023298,5]
[336637894,1724991039067,-500.0,0.00023298,5]
[336637895,1724991039081,-500.0,0.00023298,5]
[336637896,1724991039092,-561.7,0.00023299,5]
[336637897,1724991039103,-500.0,0.00023299,5]
[336637898,1724991039114,-500.0,0.00023299,5]
[336637899,1724991039125,-500.0,0.00023299,5]
[336637900,1724991039136,-1486.82,0.00023299,5]
[336637901,1724991039148,-2407.74,0.00023572,5]
[336637902,1724991039160,-535.38,0.00023572,5]
[336637903,1724991039172,-500.0,0.00023572,5]
[336637904,1724991039182,-500.0,0.00023572,5]
[336637905,1724991039194,-561.7,0.00023573,5]
[336637907,1724991039205,-500.0,0.00023573,5]
[336637910,1724991039217,-500.0,0.00023573,5]
[336637913,1724991039228,-500.0,0.00023573,5]
[336637916,1724991039241,-1486.82,0.00023573,5]
[336637918,1724991039253,-2407.74,0.00023846,5]
[336637921,1724991039264,-500.0,0.00023846,5]
[336637925,1724991039276,-500.0,0.00023846,5]
[336637928,1724991039287,-561.7,0.00023847,5]
[336637929,1724991039301,-500.0,0.00023847,5]
[336637931,1724991039312,-500.0,0.00023847,5]
[336637932,1724991039324,-500.0,0.00023847,5]
[336637933,1724991039335,-1486.82,0.00023847,5]
[336637938,1724991039348,-2000.0,0.00024,30]
[336637942,1724991039359,-648.0,0.00024,30]
[336637947,1724991039370,-2407.74,0.0002412,5]
[336637952,1724991039381,-500.0,0.0002412,5]
[336637958,1724991039391,-500.0,0.0002412,5]
[336637964,1724991039402,-561.7,0.00024121,5]
[336637966,1724991039413,-500.0,0.00024121,5]
[336637968,1724991039423,-500.0,0.00024121,5]
[336637970,1724991039433,-500.0,0.00024121,5]
[336637971,1724991039443,-1486.82,0.00024121,5]
[336637972,1724991039454,-2407.74,0.00024394,5]
[336637973,1724991039466,-500.0,0.00024394,5]
[336637975,1724991039477,-500.0,0.00024394,5]
[336637977,1724991039488,-561.7,0.00024395,5]
[336637979,1724991039499,-340.54,0.00024395,5]
[336637981,1724991039511,-500.0,0.00024395,5]
[336637984,1724991039524,-500.0,0.00024395,5]
[336637986,1724991039535,-1486.82,0.00024395,5]
[336637987,1724991039546,-522.0,0.00024638,2]
[336637989,1724991039556,-150.0,0.00024638,2]
[336637991,1724991039566,-200.0,0.00024658,15]
[336637993,1724991039581,-380.0,0.00024658,2]
[336637994,1724991039594,-2407.74,0.00024668,5]
[336637995,1724991039606,-293.87,0.00024668,5]
[336637996,1724991039618,-500.0,0.00024668,5]
[336637997,1724991039629,-561.7,0.00024669,5]
[336637998,1724991039641,-500.0,0.00024669,5]
[336637999,1724991039653,-510.24,0.00024669,5]
[336638000,1724991039665,-1486.82,0.00024669,5]
[336638001,1724991039675,-307.058816,0.00024859,2]
[336638002,1724991039686,-2407.74,0.00024942,5]
[336638004,1724991039696,-179.28,0.00024942,5]
[336638005,1724991039707,-561.7,0.00024943,5]
[336638006,1724991039720,-500.0,0.00024943,5]
[336638007,1724991039731,-1486.82,0.00024943,5]
[336638009,1724991039741,-301.82720385,0.00024969,5]
[336638010,1724991039752,-500.0,0.00024969,5]
[336638011,1724991039763,-2407.74,0.00025216,5]
[336638012,1724991039774,-561.7,0.00025217,5]
[336638013,1724991039786,-500.0,0.00025217,5]
[336638014,1724991039797,-1486.82,0.00025217,5]
[336638015,1724991039807,-500.0,0.00025243,5]
[336638016,1724991039818,-2407.74,0.0002549,5]
[336638017,1724991039829,-561.7,0.00025491,5]
[336638018,1724991039839,-530.3279033,0.00025491,5]
[336638019,1724991039849,-1486.82,0.00025491,5]
[336638020,1724991039860,-2407.74,0.00025764,5]
[336638021,1724991039872,-561.7,0.00025765,5]
[336638022,1724991039883,-1486.82,0.00025765,5]
[336638023,1724991039893,-1811.94152814,0.0002592,2]
[336638025,1724991040041,-2407.74,0.00026038,5]
[336638026,1724991040057,-561.7,0.00026039,5]
[336638027,1724991040066,-1486.82,0.00026039,5]
[336638028,1724991040075,-2407.74,0.00026312,5]
[336638029,1724991040085,-561.7,0.00026313,5]
[336638030,1724991040094,-1486.82,0.00026313,5]
[336638031,1724991040103,-2407.74,0.00026586,5]
[336638032,1724991040112,-561.7,0.00026587,5]
[336638033,1724991040122,-1486.82,0.00026587,5]
[336638034,1724991040131,-153.83,0.000266,31]
[336638035,1724991040139,-153.83,0.000266,31]
[336638036,1724991040148,-153.83,0.000266,31]
[336638037,1724991040158,-500.0,0.00026774,2]
[336638038,1724991040167,-502.76233625,0.00026831,2]
[336638039,1724991040176,-500.0,0.00026854,2]
[336638040,1724991040185,-2407.74,0.0002686,5]
[336638041,1724991040194,-561.7,0.00026861,5]
[336638042,1724991040204,-1486.82,0.00026861,5]
[336638043,1724991040213,-500.0,0.00026953,2]
[336638044,1724991040222,-2407.74,0.00027134,5]
[336638045,1724991040231,-561.7,0.00027135,5]
[336638046,1724991040243,-1486.82,0.00027135,5]
[336638047,1724991040253,-500.0,0.00027149,2]
[336638048,1724991040262,-500.0,0.0002721,2]
[336638049,1724991040271,-2407.74,0.00027408,5]
[336638050,1724991040280,-561.88043877,0.00027409,5]
[336638051,1724991040289,-1486.82,0.00027409,5]
[336638052,1724991040297,-500.0,0.00027482,2]
[336638053,1724991040306,-500.0,0.00027534,2]
[336638054,1724991040315,-2407.74,0.00027682,5]
[336638055,1724991040324,-1486.85971889,0.00027683,5]
[336638056,1724991040334,-500.0,0.00027698,2]
[336638057,1724991040342,-500.0,0.00027709,2]
[336638058,1724991040354,-500.0,0.0002775,2]
[336638059,1724991040363,-778.52174994,0.00027853,2]
[336638060,1724991040372,-2407.74,0.00027956,5]
[336638061,1724991040381,-370.78399828,0.00028229,2]
[336638062,1724991040390,-500.0,0.00028229,2]
[336638063,1724991040399,-500.0,0.00028229,2]
[336638064,1724991040408,-500.0,0.00028229,2]
[336638065,1724991040417,-500.0,0.00028229,2]
[336638066,1724991040426,-500.0,0.00028229,2]
[336638067,1724991040436,-500.0,0.00028229,2]
[336638068,1724991040446,-500.0,0.00028229,2]
[336638069,1724991040455,-518.6745858,0.00028229,2]
[336638070,1724991040464,-2407.91615025,0.0002823,5]
[336638071,1724991040473,-896.23265929,0.000284,2]
[336638072,1724991040482,-500.0,0.00028581,2]
[336638073,1724991040493,-722.68576521,0.00028649,2]
[336638074,1724991040502,-1811.94152814,0.00028915,2]
[336638075,1724991040511,-151.0,0.0003,120]
[336638076,1724991040520,-151.0,0.0003,120]
[336638077,1724991040529,-227.0,0.0003,2]
[336638078,1724991040539,-153.83,0.000304,31]
[336638079,1724991040548,-153.83,0.000304,31]
[336638080,1724991040557,-153.83,0.000304,31]
[336638081,1724991040567,-153.83,0.000304,31]
[336638082,1724991040580,-153.83,0.000304,31]
[336638083,1724991040589,-153.83,0.000304,31]
[336638084,1724991040599,-151.0,0.00030904,120]
[336638085,1724991040608,-2715.3613473,0.00031027,30]
[336638086,1724991040618,-300.0,0.00031027,2]
[336638087,1724991040627,-790.6446827,0.00031027,2]
[336638088,1724991040636,-11250.36656043,0.00031027,32]
[336638089,1724991040706,-479.64043877,0.00031027,32]
[336638090,1724991040719,-2656.84623589,0.00031027,32]
[336638091,1724991040728,-806.58449381,0.00031027,30]
[336638092,1724991040737,-6426.13472052,0.00031027,2]
[336638093,1724991040747,-512.68492353,0.00031027,14]
[336638094,1724991040756,-353.11847749,0.00031027,120]
[336638095,1724991040766,-229.28102861,0.00031027,10]
[336638096,1724991040775,-393.40120569,0.00031027,120]
[336638097,1724991040784,-512.45053462,0.00031027,2]
[336638098,1724991040794,-290.04935772,0.00031027,2]
[336638099,1724991040804,-584.62306192,0.00031027,60]
[336638100,1724991040814,-4136.59537057,0.00031027,2]
[336638101,1724991040824,-635.71134131,0.00031027,120]
[336638102,1724991040836,-319.3383031,0.00031027,2]
[336638103,1724991040847,-1187.02489818,0.00031027,30]
[336638104,1724991040859,-225.40661863,0.00031027,30]
[336638105,1724991040871,-284.9344707,0.00031027,2]
[336638106,1724991040880,-883.03855045,0.00031027,2]
[336638107,1724991040892,-162.54240286,0.00031027,2]
[336638108,1724991040903,-9324.99171963,0.00031027,120]
[336638109,1724991040912,-1589.52693026,0.00031027,2]
[336638110,1724991040947,-500.0,0.00021928,5]
[336638111,1724991040958,-500.0,0.00022202,5]
[336638112,1724991040969,-579.33965667,0.00028229,2]
[336638113,1724991040978,-191.62415787,0.00028229,2]
[336638114,1724991040988,-2518.01558214,0.00031027,2]
[336638115,1724991040998,-236.93145248,0.00031027,120]
[336638116,1724991041008,-527.18342009,0.00031027,2]
[336638117,1724991041017,-173.44866522,0.00031027,30]
[336638118,1724991041027,-240.82074905,0.00031027,120]
[336638119,1724991041036,-10061.71160817,0.00031027,2]
[336638120,1724991041045,-1117.02208001,0.00031027,2]
[336638121,1724991041055,-1042.02506391,0.00031027,10]
[336638122,1724991041064,-153.82092821,0.00031027,2]
[336638123,1724991041073,-513.51723309,0.00031027,2]
[336638124,1724991041083,-18941.74346885,0.00031027,2]
[336638125,1724991041092,-285.93487571,0.00031027,120]
[336638126,1724991041101,-176.28814229,0.00031027,120]
[336638127,1724991041110,-426.95638324,0.00031027,30]
[336638128,1724991041120,-231.75153179,0.00031027,30]
[336638129,1724991041129,-1511.97409686,0.00031027,2]
[336638130,1724991041138,-7481.69709754,0.00031027,2]
[336638131,1724991041147,-435.81789225,0.00031027,2]
[336638132,1724991041156,-222.61624886,0.00031027,2]
[336638133,1724991041165,-3047.63661691,0.00031027,2]
[336638134,1724991041174,-3635.08687973,0.00031027,2]
[336638135,1724991041183,-10020.05586549,0.00031027,2]
[336638136,1724991041192,-1015.31549248,0.00031027,2]
[336638137,1724991041201,-12758.5121429,0.00031027,2]
[336638138,1724991041211,-13261.88804107,0.00031027,2]
[336638139,1724991041220,-624.39122246,0.00031027,120]
[336638140,1724991041230,-512.06419866,0.00031027,30]
[336638141,1724991041239,-1057.89698248,0.00031027,120]
[336638142,1724991041248,-586.86538632,0.00031027,120]
[336638143,1724991041258,-364.16071886,0.00031027,30]
[336638144,1724991041267,-929.97246359,0.00031027,2]
[336638145,1724991041276,-491.15224176,0.00031027,120]
[336638146,1724991041286,-200.0,0.00031027,10]
[336638147,1724991041296,-901.7832697,0.00031027,2]
[336638148,1724991041305,-1010.7,0.00031027,120]
[336638149,1724991041315,-183.47371044,0.00031027,120]
[336638150,1724991041324,-200.0,0.00031027,2]
[336638151,1724991041336,-171.79295816,0.00031027,120]
[336638152,1724991041346,-200.0,0.00031027,30]
[336638153,1724991041355,-300.0,0.00031027,30]
[336638154,1724991041364,-150.0,0.00031027,14]
[336638155,1724991041374,-150.0,0.00031027,14]
[336638156,1724991041383,-200.0,0.00031027,14]
[336638157,1724991041393,-1000.0,0.00031027,120]
[336638158,1724991041402,-987.50565507,0.00031027,2]
[336638159,1724991041412,-150.0,0.00031027,30]
[336638160,1724991041421,-165.819533,0.00031027,30]
[336638161,1724991041431,-150.0,0.00031027,30]
[336638162,1724991041441,-150.0,0.00031027,30]
[336638163,1724991041450,-150.0,0.00031027,30]
[336638164,1724991041460,-150.0,0.00031027,30]
[336638165,1724991041469,-150.0,0.00031027,30]
[336638166,1724991041479,-250.0,0.00031027,30]
[336638167,1724991041489,-250.0,0.00031027,30]
[336638168,1724991041499,-250.0,0.00031027,30]
[336638169,1724991041509,-250.0,0.00031027,30]
[336638170,1724991041518,-250.0,0.00031027,30]
[336638171,1724991041528,-250.0,0.00031027,30]
[336638172,1724991041537,-250.0,0.00031027,30]
[336638173,1724991041547,-250.0,0.00031027,30]
[336638174,1724991041558,-250.0,0.00031027,30]
[336638175,1724991041567,-250.0,0.00031027,30]
[336638176,1724991041583,-250.0,0.00031027,30]
[336638177,1724991041592,-250.0,0.00031027,30]
[336638178,1724991041603,-250.0,0.00031027,30]
[336638179,1724991041614,-5162.48078436,0.00031038,2]
[336638180,1724991041625,-500.0,0.00031073,4]
[336638181,1724991041636,-307.058816,0.00031089,2]
[336638182,1724991041646,-151.0,0.00031425,120]
[336638183,1724991041657,-1000.0,0.00031621,4]
[336638184,1724991041667,-151.0,0.00031808,120]
[336638185,1724991041679,-1811.94152814,0.0003191,2]
[336638186,1724991041689,-150.0,0.00032,30]
[336638187,1724991041700,-1500.0,0.00032519,4]
[336638188,1724991041712,-151.0,0.00032712,120]
[336638189,1724991041721,-35000.0,0.00032776,5]
[336638190,1724991041731,-151.0,0.00032849,120]
[336638191,1724991041741,-500.0,0.00032876,120]
[336638192,1724991041751,-500.0,0.00032876,120]
[336638193,1724991041760,-500.0,0.00032876,120]
[336638194,1724991041769,-500.0,0.00032876,120]
[336638195,1724991041779,-500.0,0.00032876,120]
[336638196,1724991041788,-500.0,0.00032876,120]
[336638197,1724991041798,-500.0,0.00032876,120]
[336638198,1724991041807,-500.0,0.00032876,120]
[336638199,1724991041819,-500.0,0.00032876,120]
[336638200,1724991041829,-500.0,0.00032876,120]
[336638201,1724991041839,-500.0,0.00032876,120]
[336638202,1724991041848,-500.0,0.00032876,120]
[336638203,1724991041858,-500.0,0.00032876,120]
[336638204,1724991041867,-500.0,0.00032876,120]
[336638205,1724991041880,-500.0,0.00032876,120]
[336638206,1724991041891,-500.0,0.00032876,120]
[336638207,1724991041901,-500.0,0.00032876,120]
[336638208,1724991041910,-500.0,0.00032876,120]
[336638209,1724991041921,-500.0,0.00032876,120]
[336638210,1724991041931,-565.29746634,0.00032876,120]
[336638211,1724991041943,-3000.0,0.00033,116]
[336638212,1724991041955,-150.0,0.00033,30]
[336638213,1724991041965,-227.0,0.00033,2]
[336638214,1724991041975,-227.0,0.00033,2]
[336638215,1724991041985,-155.0,0.00033,2]
[336638216,1724991041998,-5000.0,0.00033041,14]
[336638217,1724991042008,-151.0,0.00033616,120]
[336638218,1724991042019,-2000.0,0.00033624,4]
[336638219,1724991042028,-230.299999,0.00034,9]
[336638220,1724991042038,-200.0,0.00034,30]
[336638221,1724991042048,-485.924394,0.00034,30]
[336638222,1724991042058,-153.83,0.000342,31]
[336638223,1724991042068,-153.83,0.000342,31]
[336638224,1724991042077,-153.83,0.000342,31]
[336638225,1724991042087,-153.83,0.000342,31]
[336638226,1724991042098,-153.83,0.000342,31]
[336638227,1724991042110,-153.83,0.000342,31]
[336638228,1724991042119,-151.0,0.00034274,120]
[336638229,1724991042130,-37897.55934331,0.00034421,120]
[336638230,1724991042140,-151.0,0.00034521,120]
[336638231,1724991042150,-155.0,0.00034521,2]
[336638232,1724991042161,-174.544953,0.00034703,2]
[336638233,1724991042172,-207.8512623,0.00034777,2]
[336638234,1724991042181,-207.8512623,0.00034777,2]
[336638235,1724991042190,-207.8512623,0.00034777,2]
[336638236,1724991042199,-207.8512623,0.00034777,2]
[336638237,1724991042209,-207.8512623,0.00034777,2]
[336638238,1724991042218,-415.2787544,0.00034777,2]
[336638239,1724991042227,-2164.73389092,0.00034889,4]
[336638240,1724991042236,-1811.94152814,0.00034905,2]
[336638241,1724991042246,-300.0,0.00035,10]
[336638242,1724991042256,-1000.0,0.00035,3]
[336638243,1724991042266,-381.05,0.00035,14]
[336638244,1724991042276,-7077.89969739,0.00035,14]
[336638257,1724991042965,-13200.21727844,0.00031017,3]
[336638258,1724991042977,-8331.7,0.00031017,3]
[336638259,1724991042989,-4886.30021027,0.00031017,3]
[336638275,1724991103128,500.0,0.00021928,2]
[336638276,1724991103161,500.0,0.00021928,2]
[336638277,1724991103191,500.0,0.00021928,2]
[336638278,1724991103219,500.0,0.00021928,2]
[336638279,1724991103248,500.0,0.00021928,2]
[336638280,1724991103286,500.0,0.00021928,2]
[336638281,1724991103324,500.0,0.00021928,2]
[336638282,1724991103395,500.0,0.00021928,2]
[336638283,1724991103435,500.0,0.00021928,2]
[336638284,1724991103500,500.0,0.00021928,2]
[336638285,1724991103551,500.0,0.00021928,2]
[336638286,1724991103593,500.0,0.00021928,2]
[336638287,1724991103643,500.0,0.00021928,2]
[336638288,1724991103702,200.0,0.00021928,2]
[336638289,1724991103767,500.0,0.00021928,2]
[336638290,1724991105367,500.0,0.00021381,2]
[336638291,1724991105674,500.0,0.00021655,2]
[336638292,1724991105967,500.0,0.00021929,5]
[336638293,1724991112610,500.0,0.00021928,5]
[336638295,1724991115614,500.0,0.00021928,2]
[336638296,1724991115644,500.0,0.00021928,2]
[336638297,1724991115676,500.0,0.00021928,2]
[336638298,1724991115706,500.0,0.00021928,2]
[336638299,1724991115734,500.0,0.00021928,2]
[336638300,1724991115765,500.0,0.00021928,2]
[336638301,1724991115799,500.0,0.00021928,2]
[336638302,1724991115836,500.0,0.00021928,2]
[336638303,1724991115866,500.0,0.00021928,2]
[336638304,1724991115897,500.0,0.00021928,2]
[336638305,1724991115959,500.0,0.00021928,2]
[336638306,1724991115990,500.0,0.00021928,2]
[336638307,1724991116026,500.0,0.00021928,2]
[336638308,1724991116058,500.0,0.00021928,2]
[336638309,1724991116089,500.0,0.00021928,2]
[336638310,1724991116121,500.0,0.00021928,2]
[336638311,1724991116150,500.0,0.00021928,2]
[336638312,1724991116183,300.0,0.00021928,2]